Cogmind - Beta 15 @@@ ROGUE MODE // 2025.05.29 @ 02:58:31 Player: K0T Result: Destroyed by R7-0HT(R) with Subdweller Shrapnel Launcher Performance ------------- Evolutions (0) 0 Regions Visited (2) 400 Robots Destroyed (14) 70 Value Destroyed (450) 450 Prototype IDs (0) 0 Alien Tech Used (0) 0 Bonus (0) 0 TOTAL SCORE: 920 Bonus ------- None Cogmind --------- Core Integrity 0/250 Matter 286/300 Energy 200/200 System Corruption 0% Temperature Cool (0) Movement Rolling (110) Location -10/Subcaves Parts ------- > --- POWER (1) -------- Subdweller Power Source > --- PROPULSION (2) --- Subdweller Monowheel Subdweller Monowheel > --- UTILITY (2) ------ Small Storage Unit > --- WEAPON (2) ------- Subdweller Machine Gun > --- INVENTORY (8) ---- Light Ion Engine Makeshift Power Source Improved Heat Sink Cobbler Unit Salvaging Laser Subdweller Laser Battle Cannon Peak State ------------ > --- POWER ------------ Subdweller Power Source > --- PROPULSION ------- Subdweller Monowheel Subdweller Monowheel > --- UTILITY ---------- Small Storage Unit Subdweller Optics > --- WEAPON ----------- Beam Rifle Subdweller Machine Gun > --- INVENTORY -------- Makeshift Power Source Improved Heat Sink Cobbler Unit Salvaging Laser Subdweller Laser Light Assault Rifle Battle Cannon [Rating: 14] Favorites ----------- Power Subdweller Power Source Engine Subdweller Power Source Propulsion Light Treads Treads Light Treads Leg Makeshift Leg Wheel Subdweller Monowheel Utility Small Storage Unit Device Subdweller Optics Storage Small Storage Unit Weapon Salvaging Laser Energy Gun Salvaging Laser Ballistic Gun Assault Rifle Build | -11 -10 -10 ------- Run | Yrd Mat Sub Slots Evolved . | . . . Power . | . . . Propulsion . | . . . Utility . | . . . Weapon . | . . . Parts Attached 17 | 7 . 10 Power 4 | 1 . 3 Engine 4 | 1 . 3 Core . | . . . Reactor . | . . . Propulsion 5 | 2 . 3 Treads 2 | 2 . . Leg 1 | . . 1 Wheel 2 | . . 2 Hover . | . . . Flight . | . . . Utility 2 | 1 . 1 Device 1 | . . 1 Storage 1 | 1 . . Processor . | . . . Hackware . | . . . Protection . | . . . Artifact . | . . . Weapon 6 | 3 . 3 Energy Gun 3 | 1 . 2 Energy Cannon . | . . . Ballistic Gun 3 | 2 . 1 Ballistic Cannon . | . . . Launcher . | . . . Special Weapon . | . . . Impact Weapon . | . . . Slashing Weapon . | . . . Piercing Weapon . | . . . Special Melee Weapon . | . . . Unidentified Prototypes . | . . . Parts Lost 7 | . . 7 Power . | . . . Propulsion 3 | . . 3 Utility 1 | . . 1 Weapon 3 | . . 3 Highest Loss Streak 2 | . . 2 To Critical Strikes . | . . . Average Backups 4 | 1 . 5 Power . | . . . Propulsion . | . . . Utility . | . . 1 Weapon 2 | . . 3 Tool/Special . | . . . Unused Backups 7 | . . 7 Power 2 | . . 2 Propulsion . | . . . Utility 2 | . . 2 Weapon 3 | . . 3 Tool/Special . | . . . Average Slot Usage (%) 78 | . 85 76 Engine 13 | . 14 13 Treads 16 | . 28 13 Leg 4 | . . 5 Wheel 2 | . . 2 Device 1 | . . 1 Storage 14 | . 14 14 Energy Gun 16 | . . 21 Ballistic Gun 8 | . 28 4 Peak Build Rating 14 | 6 6 14 Average Rating 8 | 3 6 9 On Entrance 4 | . 6 6 Naked Turns . | . . . Heaviest Build 19 | 13 13 19 Greatest Support 40 | 40 40 40 Greatest Overweight (x) 4 | . . 4 Average Overweight (x) . | . . . Largest Inventory Capacity 8 | 8 8 8 Average Capacity 7 | 6 8 8 Most Carried 8 | 5 1 8 Average Carried 4 | 1 . 5 Final Capacity 8 | 8 8 8 Final Carried 8 | . 1 8 Class Distribution -------------------- 62% | Mutant 37% | Scavenger-Mutant Dominant Class ---------------- Mutant | -10/Materials Mutant | -10/Subcaves Resources | -11 -10 -10 ----------- Run | Yrd Mat Sub Matter Collected 474 | 194 100 180 Remotely . | . . . Salvage Created 501 | . 132 369 Parts 31 | . 5 26 Haulers Intercepted . | . . . Recyclers Shooed . | . . . Parts Field Recycled . | . . . Retrieved Matter . | . . . Parts Self-Destructed 12 | . . 12 Prevented . | . . . Kills | -11 -10 -10 ------- Run | Yrd Mat Sub Combat Hostiles Destroyed 12 | . 3 9 Guns 12 | . 3 9 Classes Destroyed 5 | . 1 4 Turret 2 | . . 2 Swarmer 3 | . . 3 Grunt 3 | . 3 . Sentry 1 | . . 1 Subdweller 5 | . . 5 Best Kill Streak 3 | . 2 3 Combat Bots Only 3 | . 2 3 Max Kills in Single Turn 1 | . 1 1 Gunslinging . | . . . Exploded . | . . . Melee . | . . . Uniques/NPCs Destroyed . | . . . Combat | -11 -10 -10 -------- Run | Yrd Mat Sub Hostile Shots Fired 152 | . 18 134 Missed 58 | . 6 52 Hits 94 | . 12 82 Projectile 94 | . 12 82 AOE 4 | . . 4 Critical Strikes 2 | . . 2 Damage Taken 1216 | . 150 1066 Core 265 | . 23 242 Absorbed by Shields . | . . . Core Remaining (%) 100 | 100 . . Volleys Fired 61 | . 17 44 Largest 2 | . 2 2 Hottest 86 | . 40 86 Shots Fired 99 | . 34 65 Gun 99 | . 34 65 Cannon . | . . . Launcher . | . . . Special . | . . . Kinetic 70 | . 34 36 Thermal 29 | . . 29 Explosive . | . . . Electromagnetic . | . . . Robot Hit Streak 7 | . 5 7 Robot Miss Streak 6 | . 6 3 Penetration Max . | . . . Secondary Targets 3 | . 1 2 Max Gunslinging Chain 1 | . 1 1 Shots Hit Robots 63 | . 20 43 Core Hits 25 | . 6 19 Critical Kills . | . . . Critical Parts Destroyed . | . . . Critical Strikes 1 | . . 1 Burn 1 | . . 1 Melee Attacks . | . . . Impact . | . . . Slashing . | . . . Piercing . | . . . Sneak Attacks . | . . . Combat Hostiles . | . . . Follow-up Attacks . | . . . Damage Inflicted 791 | . 206 585 Guns 791 | . 206 585 Cannons . | . . . Explosions . | . . . Melee . | . . . Ramming . | . . . Kinetic 559 | . 206 353 Thermal 232 | . . 232 Explosive . | . . . Electromagnetic . | . . . Impact . | . . . Slashing . | . . . Piercing . | . . . Highest Corruption . | . . . Average Corruption . | . . . Corruption Purged . | . . . Corruption Blocked . | . . . Overload Shots . | . . . Overflow Damage . | . . . Projectiles . | . . . Explosions . | . . . Melee . | . . . Knockbacks . | . . . Impact . | . . . Kinetic . | . . . Secondary . | . . . Self-Inflicted Damage . | . . . Shots . | . . . Rammed . | . . . Targets Rammed . | . . . Kicked . | . . . Crushed . | . . . Highest Temperature 249 | . 9 249 Average Temperature 60 | . 6 99 Received Heat Transfer 778 | . 81 697 Siege Activations . | . . . Martial Activations . | . . . Shielding Activations . | . . . Robots Disrupted . | . . . Combat Hostiles . | . . . Robots Corrupted . | . . . Combat Hostiles . | . . . Parts Fried . | . . . Impact Corruptions . | . . . Robots Melted . | . . . Combat Hostiles . | . . . Parts Melted 2 | . 1 1 Heat Transferred 681 | . . 681 Parts Sabotaged . | . . . Parts Stolen . | . . . Parts Stripped . | . . . Power Chain Reactions . | . . . Alert | -11 -10 -10 ------- Run | Yrd Mat Sub Maximum Alert Level . | . . . Low Security (%) 100 | 100 100 . Level 1 . | . . . Level 2 . | . . . Level 3 . | . . . Level 4 . | . . . Level 5 . | . . . High Security . | . . . Max Security . | . . . Peak Influence 60 | . 60 . Initial . | . . . Average 9 | . 10 . Influence Increases 296 | . 116 180 Destroy 0b10 Robot/C 180 | . 60 120 Destroy Leader 20 | . 20 . Successful Hack 6 | . 6 . Select Force Hacks 30 | . 30 . Lose Combat Pursuer 60 | . . 60 Influence Decreases 296 | . 76 220 Entered New Map 20 | . . 20 Time Decay 266 | . 76 190 Lost Part 10 | . . 10 Squads Dispatched 1 | . 1 . Investigation 1 | . 1 . Extermination . | . . . Reinforcement . | . . . Assault . | . . . Garrison . | . . . Intercept . | . . . Searches Triggered . | . . . Construction Impeded . | . . . Haulers Reinforced . | . . . Active Scanning Responses . | . . . Cargo Convoy Interrupts . | . . . Stealth | -11 -10 -10 --------- Run | Yrd Mat Sub Distress Signals . | . . . Communications Jammed . | . . . Distress Signals . | . . . Times Spotted 24 | . 9 15 Peak Tracking Total 3 | . 2 3 Tactical Retreats 3 | . . 3 Traps | -11 -10 -10 ------- Run | Yrd Mat Sub Traps Triggered 1 | . . 1 Indirectly . | . . . Trap Hack Attempts . | . . . Triggered . | . . . Disarmed . | . . . Reprogrammed . | . . . Reused . | . . . Traps Extracted . | . . . Installed . | . . . Triggered . | . . . Machines | -11 -10 -10 ---------- Run | Yrd Mat Sub Machines Disabled . | . . . Max in Single Turn . | . . . Machines Repaired . | . . . Machines Dismantled . | . . . Machines Sabotaged . | . . . Overloaded Fab Kills . | . . . Hacking | -11 -10 -10 --------- Run | Yrd Mat Sub Machines Accessed 3 | . 2 1 Terminals 1 | . 1 . Fabricators . | . . . Repair Stations . | . . . Recycling Units 1 | . 1 . Scanalyzers . | . . . Garrison Access . | . . . Total Hacks 8 | . 5 3 Successful 8 | . 5 3 Failed . | . . . Catastrophic . | . . . Database Lockouts . | . . . Manual 4 | . 4 . Terminals 2 | . 2 . Fabricators . | . . . Repair Stations . | . . . Recycling Units 3 | . 3 . Scanalyzers . | . . . Garrison Access . | . . . Terminal Hacks 5 | . 2 3 Record 3 | . . 3 Robot Analysis 2 | . 2 . Fabricator Hacks . | . . . Repair Station Hacks . | . . . Recycling Unit Hacks 1 | . 1 . Retrieve Components 1 | . 1 . Scanalyzer . | . . . Garrison Access Hacks . | . . . Unauthorized Hacks 1 | . 1 . Terminals . | . . . Fabricators . | . . . Repair Stations . | . . . Recycling Units 1 | . 1 . Tunnel 1 | . 1 . Scanalyzers . | . . . Garrison Access . | . . . Data Cores Recovered . | . . . Used . | . . . Hacking Detections 1 | . 1 . Full Trace Events . | . . . Feedback Events . | . . . Feedback Blocked . | . . . Robot Schematics Acquired . | . . . Robots Built . | . . . Authchips . | . . . Time . | . . . Total Robot Build Rating . | . . . Part Schematics Acquired . | . . . Parts Built . | . . . Authchips . | . . . Time . | . . . Total Part Build Rating . | . . . Parts Repaired . | . . . Time . | . . . Parts Recycled . | . . . Recycled Matter . | . . . Retrieved Matter . | . . . Retrieved Components 9 | . 9 . Parts Scanalyzed . | . . . Part Schematics Acquired . | . . . Parts Damaged . | . . . Bothacking | -11 -10 -10 ------------ Run | Yrd Mat Sub Used RIF Installer . | . . . Robots Hacked . | . . . Non-combat . | . . . Combat . | . . . Robot Hacks Applied . | . . . Relay Couplers Released . | . . . Fabnet Peak Effective % . | . . . Robots Rewired . | . . . Allies Hacked . | . . . Hacks Repelled . | . . . Allies | -11 -10 -10 -------- Run | Yrd Mat Sub Total Allies . | . . . Largest Group . | . . . Highest-Rated Group . | . . . Highest-Rated Ally . | . . . Total Orders . | . . . Ally Attacks . | . . . Total Damage . | . . . Kills . | . . . Allies Corrupted . | . . . Allies Melted . | . . . Intel | -11 -10 -10 ------- Run | Yrd Mat Sub Active Infowar (turns) 120 | . . 120 Optics 120 | . . 120 Robot Analysis Total 2 | . 2 . Derelict Logs Recovered 2 | . . 2 Drone Launches . | . . . Drone Recoveries . | . . . Exploration | -11 -10 -10 ------------- Run | Yrd Mat Sub Turns Passed 1623 | 44 324 1255 Spaces Moved 941 | 31 173 737 Core 26 | 16 . 10 Treads 510 | 15 173 322 Legs 338 | . . 338 Wheels 67 | . . 67 Hover . | . . . Flight . | . . . Fastest Speed 50 | 50 160 110 Average Speed 148 | 103 160 147 Slowest Speed 250 | 160 160 250 Overloaded Moves . | . . . Propulsion Burnouts . | . . . Robots Hopped . | . . . Potential Cave-ins . | . . . Cave-ins Triggered . | . . . Exploration Rate (%) 26 | 3 31 46 Regions Visited 2 Branch Regions 1 Pre-discovered Areas 4 | . 1 3 Known Exits Taken . | . . . Unknown Exits Taken 2 | 1 1 . Scrap Searched . | . . . Spaces Dug . | . . . Terrain Destroyed . | . . . Melee . | . . . Projectile . | . . . AOE . | . . . Terrain Rammed . | . . . Walls Destroyed . | . . . Machines Disabled . | . . . Actions | -11 -10 -10 --------- Run | Yrd Mat Sub Total 1080 | 43 190 847 Wait 37 | . . 37 Move 939 | 30 172 737 Hop . | . . . Pick Up 21 | 5 1 15 Fast Attach 3 | 2 . 1 Attach 11 | 5 . 6 Detach . | . . . Swap 3 | . . 3 Drop 5 | 1 . 4 Fire 61 | . 17 44 Melee . | . . . Ram . | . . . Kick . | . . . Crush . | . . . Escape Stasis . | . . . Rewire . | . . . Trap . | . . . Miscellaneous . | . . . Route ------- -11/Scrapyard -10/Materials (discovered 2 exits: [*Mat] / *Sub) -10/Subcaves (discovered 3 exits: [*Mat x2] / [*Rec]) History --------- Turn | Location | Event 6 | -11/Scrapyard | Discovered new exit (range 15) 45 | -11/Scrapyard | Entered Materials 46 | -10/Materials | Met a group of wandering Federalists 217 | -10/Materials | Discovered new exit (range 3) 312 | -10/Materials | Build established: Mutant 350 | -10/Materials | Discovered new exit (range 16) 369 | -10/Materials | Entered Subcaves 370 | -10/Subcaves | Continued accompanying wandering Federalists (4) 393 | -10/Subcaves | Learned location of Zion (-6) 393 | -10/Subcaves | Met a Zionite searching for "candidates" 452 | -10/Subcaves | Lost 6 allies 495 | -10/Subcaves | Discovered new exit (range 16) 607 | -10/Subcaves | Shifting Twisted Machinery released Battle Cannon 611 | -10/Subcaves | Shifting Twisted Machinery released Sub. Power Source 611 | -10/Subcaves | Discovered new exit (range 8) 724 | -10/Subcaves | Discovered new exit (range 9) 739 | -10/Subcaves | Shifting Twisted Machinery released Sub. Laser 835 | -10/Subcaves | Shifting Twisted Machinery released Sub. Monowheel 1058 | -10/Subcaves | Visited Clippyterm 1062 | -10/Subcaves | Learned location of Section 7 (-2) 1097 | -10/Subcaves | Learned 2 Materials zone layouts 1102 | -10/Subcaves | A swath of the cavern ceiling suddenly collapsed 1257 | -10/Subcaves | Build established: Scavenger-Mutant 1449 | -10/Subcaves | Core integrity fell below 50% 1615 | -10/Subcaves | Core integrity fell below 20% 1624 | -10/Subcaves | Destroyed by R7-0HT(R) with Subdweller Shrapnel Launcher Last Messages --------------- 01520_ Acquired 10 matter. 01522_ Dropped Lgt. Assault Rifle. 01522_ Acquired Lgt. Ion Engine. 01529_ DG-84D(R): "WEHOME!" 01529_ DG-84D(R) suffers critical hit (Burn). 01529_ DG-84D(R) destroyed. 01538_ Acquired 2 matter. 01580_ Sub. Optics melted. 01580_ CU-N7O(R) destroyed. 01584_ Critical hit (Meltdown: +250). 01588_ 4W-4TO(R) destroyed. 01589_ Subatomizers dissect the Disposable Heat Sink. 01600_ Sub. Optics destroyed. 01602_ KH-TG5(R) destroyed. 01613_ Subatomizers dissect the Disposable Heat Sink. 01614_ Beam Rifle destroyed. 01619_ R7-0HT(R) affixes Scrap Shield Fragment to Scrap Shield. Map ----- +----------------------------------------------------+ | | | | | | | | | | | ?????????????????????????????????????????????????? | | ?????????????????????????????????????????????????? | | ?????????????????????????????????????????????????? | | ?????????????????????????????????????????????????? | | ?????????????????????????????????????????????????? | | ?????????????????????????????????????????????????? | | ?????????????????????????????????????????????????? | | ?????????????????????????????????????????????????? | | ?????????????????????????????????????????????????? | | ?????????????????????????????????????????????????? | | ?????????????????????????????????????????????????? | | ?????????????????????????????????????????????????? | | ?????????????????????????????????????????????????? | | ?????????????????????????????????????????????????? | | ???????????????????????????###???????????????????? | | ????????????????????######## ##???##?????????????? | | ????????????????????# # ##### ####?????????? | | ???????????????????## # ###???????? | | ???????????##### ###R& ### #####???? | | ???????????# ! <<## # ##??? | | ????????? " "%% & @ = <$$<# #### ##?? | | ????????? """#=! | <$$<# ##??# #?? | | ????????????????????# #<<## ###?## ##?? | | ????????????????????# #### #??# #?? | | ????????????????????# # ##?# ##?? | | ????????????????????### ##### ### ##??? | | ??????????????????????# ##???## ## ##??? | | ??????????????????????#" #???## ### #??? | | ??????????????????????#"## #???# ## # ##?? | | ??????????????????????" ?"" ???# ##? | | ?????????????????????? ?""" ???# *% #? | | ?????????????????????? ??#""???# # ###### #? | | ?????????????????????? #???"""??## ###???##% ##? | | ?????????????????????? ?????????""""##?????# ##?? | | ??????????????????????????????""" ""??????##% ##?? | | ?????????????????????????????# "# # ??????# [ #?? | | ?????????????????????????????#######????###% #?? | | ????????????????????????????### ????????# = #?? | | ???????????????????????????## ##?????## #?? | | ??????????????????????????## ###### #####? | | ??????????????????????????# ## ## | | ??????????????????????????# # | | ???????????????????????????# ### # | | ?????????????????????????????????# % # | | ????????????????????????????????## = | +----------------------------------------------------+ Best States ------------- Heat Dissipation 25 Energy Generation 15 Energy Capacity 250 Matter Stores 300 Matter Capacity 300 Sight Range 21 Terrain Scan Density 10 Evasion (%) 55 Recoil Reduction 2 Item Schematics ----------------- None Robot Schematics ------------------ None Fabricated ------------ Nothing Repaired ---------- Nothing Alien Tech Used ----------------- None Achievements -------------- None Challenges ------------ None Game ------ Seed PartitionBiomechanicalTube Manual? 0 Play Time 00:13:27 Cumulative 142.1 hours Start 2025.05.29 @ 02:46:54 End 2025.05.29 @ 02:58:31 Sessions 1 Manual Loads 0 Difficulty Rogue Special Mode None Game No. 69 Rogue 56 Adventurer 13 Explorer 0 Win Type - Total 1 Types 1/0/0/0/0/0/0/0/0/0 Lore% 35 Gallery% 39 Achievement% 40 Wizard Run 0 Options --------- Layout 1 ASCII 0 Keyboard 0 Movement Mouse Keybinds 0 Fullscreen 1 Font 24/Smallcaps Map View 50x35 Zoom Use 0% Tactical HUD 1 Map Filters NONE Filters NONE Steam 0 RUN: b1302cab-030d-488f-bfdc-8ca385070c68